[Event "GrandPrix_30.05"]
[Site "Chess.com"]
[Date "2020.05.30"]
[Round "3"]
[White "PeshkaTheGreat"]
[Black "N4700000"]
[Result "1/2-1/2"]
[WhiteElo "2136"]
[BlackElo "2292"]
[TimeControl "600+2"]
[EndTime "9:26:31 PDT"]
[Termination "Game drawn by repetition"]

1. e4 {[%clk 0:10:01.9]} 1... c5 {[%clk 0:07:03.9]} 2. Nf3 {[%clk 0:10:01.5]}
2... e6 {[%clk 0:07:05.3]} 3. d4 {[%clk 0:10:02.5]} 3... cxd4 {[%clk 0:07:07.2]}
4. Nxd4 {[%clk 0:10:04.4]} 4... Nf6 {[%clk 0:07:08]} 5. Nc3 {[%clk 0:10:05.4]}
5... Nc6 {[%clk 0:07:09.5]} 6. Nxc6 {[%clk 0:10:03.5]} 6... bxc6 {[%clk
0:07:09.8]} 7. e5 {[%clk 0:10:05]} 7... Nd5 {[%clk 0:07:11]} 8. Ne4 {[%clk
0:10:06.6]} 8... Qc7 {[%clk 0:07:12]} 9. f4 {[%clk 0:10:07.5]} 9... Qb6 {[%clk
0:07:12.4]} 10. c4 {[%clk 0:09:57.5]} 10... Bb4+ {[%clk 0:07:04.4]} 11. Ke2
{[%clk 0:09:58.3]} 11... O-O {[%clk 0:07:03.8]} 12. cxd5 {[%clk 0:09:03.6]}
12... cxd5 {[%clk 0:07:05.7]} 13. Be3 {[%clk 0:08:59.7]} 13... Qb8 {[%clk
0:07:04.2]} 14. Ng5 {[%clk 0:08:54.6]} 14... f6 {[%clk 0:07:03]} 15. exf6 {[%clk
0:08:51.7]} 15... gxf6 {[%clk 0:07:03.4]} 16. Nf3 {[%clk 0:08:46.4]} 16... Bd6
{[%clk 0:07:02.4]} 17. Qd2 {[%clk 0:08:26.7]} 17... Bb7 {[%clk 0:06:54.1]} 18.
Kf2 {[%clk 0:08:22.4]} 18... e5 {[%clk 0:06:52.5]} 19. fxe5 {[%clk 0:08:10.5]}
19... fxe5 {[%clk 0:06:52.4]} 20. Bh6 {[%clk 0:08:11.2]} 20... Rf7 {[%clk
0:06:36.2]} 21. Qg5+ {[%clk 0:07:22.7]} 21... Kh8 {[%clk 0:06:34.8]} 22. Qh5
{[%clk 0:07:19.4]} 22... Qe8 {[%clk 0:05:56.5]} 23. Bd2 {[%clk 0:06:07.5]} 23...
d4 {[%clk 0:05:39]} 24. Qh6 {[%clk 0:05:51.3]} 24... Bf8 {[%clk 0:05:27.8]} 25.
Qh4 {[%clk 0:05:35.1]} 25... e4 {[%clk 0:05:26.7]} 26. Bc4 {[%clk 0:05:21.7]}
26... d5 {[%clk 0:05:12.4]} 27. Be2 {[%clk 0:04:58.5]} 27... e3+ {[%clk
0:05:03.8]} 28. Kf1 {[%clk 0:04:49.1]} 28... exd2 {[%clk 0:05:02.4]} 29. Qxd4+
{[%clk 0:04:50]} 29... Bg7 {[%clk 0:05:01.7]} 30. Qxd2 {[%clk 0:04:51.5]} 30...
Rb8 {[%clk 0:04:50.5]} 31. Re1 {[%clk 0:04:41.9]} 31... Qf8 {[%clk 0:04:31.6]}
32. h4 {[%clk 0:04:03.1]} 32... d4 {[%clk 0:04:06.7]} 33. Rh3 {[%clk 0:03:57.9]}
33... Rd8 {[%clk 0:03:35.4]} 34. Kg1 {[%clk 0:03:42.8]} 34... d3 {[%clk
0:03:30.7]} 35. Bd1 {[%clk 0:03:38.1]} 35... Bxf3 {[%clk 0:03:22]} 36. Rxf3
{[%clk 0:03:27.8]} 36... Rxf3 {[%clk 0:03:20.7]} 37. Bxf3 {[%clk 0:03:29.7]}
37... Qf6 {[%clk 0:03:11.1]} 38. Qg5 {[%clk 0:02:35.1]} 38... Qxg5 {[%clk
0:03:08.1]} 39. hxg5 {[%clk 0:02:37]} 39... d2 {[%clk 0:03:06.5]} 40. Rd1 {[%clk
0:02:33.1]} 40... Bxb2 {[%clk 0:03:06.8]} 41. Kf1 {[%clk 0:02:30.6]} 41... Bc1
{[%clk 0:02:58.9]} 42. Ke2 {[%clk 0:02:28.6]} 42... Re8+ {[%clk 0:02:59.2]} 43.
Kd3 {[%clk 0:02:25]} 43... Re5 {[%clk 0:02:58.7]} 44. Be4 {[%clk 0:01:24.9]}
44... Rxg5 {[%clk 0:02:59.1]} 45. Rh1 {[%clk 0:01:25.4]} 45... Rg7 {[%clk
0:02:59.2]} 46. Bf3 {[%clk 0:01:13]} 46... Re7 {[%clk 0:02:53.7]} 47. Kc2 {[%clk
0:01:04.6]} 47... Kg7 {[%clk 0:02:41.7]} 48. Rh4 {[%clk 0:00:51]} 48... Rd7
{[%clk 0:02:32.3]} 49. Kd1 {[%clk 0:00:46.5]} 49... Ba3 {[%clk 0:02:22.8]} 50.
Rh3 {[%clk 0:00:27.1]} 50... Bb4 {[%clk 0:02:21.9]} 51. Be4 {[%clk 0:00:27.4]}
51... h6 {[%clk 0:02:20.1]} 52. Rb3 {[%clk 0:00:20.3]} 52... Ba5 {[%clk
0:02:16.2]} 53. Ra3 {[%clk 0:00:14.7]} 53... Bb4 {[%clk 0:02:13.2]} 54. Rb3
{[%clk 0:00:14.9]} 54... Rd4 {[%clk 0:02:13.1]} 55. Bf3 {[%clk 0:00:05.7]} 55...
Kf6 {[%clk 0:02:11]} 56. a3 {[%clk 0:00:04.4]} 56... Ba5 {[%clk 0:02:09.2]} 57.
Kc2 {[%clk 0:00:05.4]} 57... Rc4+ {[%clk 0:02:07]} 58. Kb2 {[%clk 0:00:05.4]}
58... Rc1 {[%clk 0:02:03.8]} 59. Rd3 {[%clk 0:00:06.2]} 59... Ke5 {[%clk
0:01:58.9]} 60. Rd5+ {[%clk 0:00:07]} 60... Kf4 {[%clk 0:01:58.8]} 61. Rxa5
{[%clk 0:00:08.3]} 61... d1=Q {[%clk 0:01:56.1]} 62. Bxd1 {[%clk 0:00:09.4]}
62... Rxd1 {[%clk 0:01:57.7]} 63. Rxa7 {[%clk 0:00:10.1]} 63... Rd2+ {[%clk
0:01:58.5]} 64. Kc3 {[%clk 0:00:12]} 64... Rxg2 {[%clk 0:01:59.3]} 65. a4 {[%clk
0:00:12.9]} 65... h5 {[%clk 0:01:58.3]} 66. Rh7 {[%clk 0:00:13.3]} 66... Rg5
{[%clk 0:01:49.1]} 67. Kb4 {[%clk 0:00:11.4]} 67... Kg3 {[%clk 0:01:48.7]} 68.
a5 {[%clk 0:00:12.8]} 68... h4 {[%clk 0:01:49.6]} 69. a6 {[%clk 0:00:13.5]}
69... h3 {[%clk 0:01:46.2]} 70. a7 {[%clk 0:00:14.5]} 70... Rg8 {[%clk
0:01:46.8]} 71. Rg7+ {[%clk 0:00:09.6]} 71... Rxg7 {[%clk 0:01:47.3]} 72. a8=Q
{[%clk 0:00:11.5]} 72... Rg4+ {[%clk 0:01:47.6]} 73. Kc3 {[%clk 0:00:11]} 73...
h2 {[%clk 0:01:47.7]} 74. Kd2 {[%clk 0:00:07.9]} 74... Kf2 {[%clk 0:01:37.4]}
75. Qf8+ {[%clk 0:00:06.4]} 75... Kg2 {[%clk 0:01:35.3]} 76. Qa8+ {[%clk
0:00:04.9]} 76... Kg1 {[%clk 0:01:30.5]} 77. Qa1+ {[%clk 0:00:05.9]} 77... Kf2
{[%clk 0:01:27.2]} 78. Qf6+ {[%clk 0:00:06.4]} 78... Kg1 {[%clk 0:01:21.7]} 79.
Qa1+ {[%clk 0:00:05.6]} 79... Kg2 {[%clk 0:01:21.7]} 80. Qa8+ {[%clk 0:00:06.5]}
80... Kh3 {[%clk 0:01:19.1]} 81. Qf3+ {[%clk 0:00:03.8]} 81... Rg3 {[%clk
0:01:17.5]} 82. Qh5+ {[%clk 0:00:04.4]} 82... Kg2 {[%clk 0:01:17.2]} 83. Qe2+
{[%clk 0:00:05.4]} 83... Kg1 {[%clk 0:01:15.7]} 84. Qe1+ {[%clk 0:00:06.1]}
84... Kg2 {[%clk 0:01:15.7]} 85. Qe2+ {[%clk 0:00:07.4]} 85... Kg1 {[%clk
0:01:13.5]} 86. Qe1+ {[%clk 0:00:07.7]} 86... Kg2 {[%clk 0:01:14.6]} 87. Qe2+
{[%clk 0:00:08.6]} 1/2-1/2

[Event "GrandPrix_30.05"]
[Site "Chess.com"]
[Date "2020.05.30"]
[Round "3"]
[White "MikaelyanArman1996"]
[Black "DaVinci81"]
[Result "1/2-1/2"]
[WhiteElo "2391"]
[BlackElo "2528"]
[TimeControl "600+2"]
[EndTime "9:26:42 PDT"]
[Termination "Game drawn by repetition"]

1. e4 {[%clk 0:09:58]} 1... e5 {[%clk 0:10:00.4]} 2. Nf3 {[%clk 0:09:58.6]} 2...
Nc6 {[%clk 0:10:01.5]} 3. Bb5 {[%clk 0:09:58.9]} 3... a6 {[%clk 0:10:02.6]} 4.
Ba4 {[%clk 0:09:59.5]} 4... Nf6 {[%clk 0:10:03.7]} 5. O-O {[%clk 0:09:59.2]}
5... Be7 {[%clk 0:10:04.8]} 6. Re1 {[%clk 0:09:59.2]} 6... b5 {[%clk 0:10:05.8]}
7. Bb3 {[%clk 0:09:59.4]} 7... d6 {[%clk 0:10:06.9]} 8. c3 {[%clk 0:09:58.2]}
8... O-O {[%clk 0:10:07.2]} 9. h3 {[%clk 0:09:59.1]} 9... Nb8 {[%clk 0:10:08]}
10. d4 {[%clk 0:09:59.4]} 10... Nbd7 {[%clk 0:10:07.6]} 11. Nbd2 {[%clk
0:10:00.5]} 11... Bb7 {[%clk 0:10:08.5]} 12. Bc2 {[%clk 0:09:58.4]} 12... c5
{[%clk 0:10:08]} 13. Nf1 {[%clk 0:09:53.6]} 13... cxd4 {[%clk 0:10:08.6]} 14.
cxd4 {[%clk 0:09:53.8]} 14... exd4 {[%clk 0:10:10]} 15. Nxd4 {[%clk 0:09:53.1]}
15... Re8 {[%clk 0:10:08.6]} 16. Nf5 {[%clk 0:09:31.9]} 16... Bf8 {[%clk
0:10:03.9]} 17. N1g3 {[%clk 0:08:43.4]} 17... Nc5 {[%clk 0:09:48.8]} 18. f3
{[%clk 0:08:20.8]} 18... Rc8 {[%clk 0:08:43.3]} 19. b4 {[%clk 0:07:36.3]} 19...
Ne6 {[%clk 0:08:35.2]} 20. Bb2 {[%clk 0:07:29.5]} 20... g6 {[%clk 0:08:17.2]}
21. Ne3 {[%clk 0:06:31.2]} 21... Bg7 {[%clk 0:08:08.5]} 22. Rb1 {[%clk
0:06:20.4]} 22... Nf4 {[%clk 0:07:55.3]} 23. Bb3 {[%clk 0:05:58.9]} 23... h5
{[%clk 0:06:55.7]} 24. Ne2 {[%clk 0:05:48.4]} 24... Nxe2+ {[%clk 0:06:50.8]} 25.
Rxe2 {[%clk 0:05:50.3]} 25... h4 {[%clk 0:06:35]} 26. Qe1 {[%clk 0:05:16.9]}
26... Nh5 {[%clk 0:06:29.7]} 27. Bxg7 {[%clk 0:05:16.2]} 27... Kxg7 {[%clk
0:06:31]} 28. Qd2 {[%clk 0:04:56]} 28... Nf4 {[%clk 0:06:12.4]} 29. Nf5+ {[%clk
0:04:43]} 29... gxf5 {[%clk 0:06:13.2]} 30. Qxf4 {[%clk 0:04:43.9]} 30... Qf6
{[%clk 0:06:11.1]} 31. Rd1 {[%clk 0:04:27.9]} 31... Rcd8 {[%clk 0:05:39.5]} 32.
Bd5 {[%clk 0:04:13.7]} 32... Bxd5 {[%clk 0:04:41.1]} 33. Rxd5 {[%clk 0:04:15.6]}
33... Re5 {[%clk 0:04:36.3]} 34. Red2 {[%clk 0:03:55.2]} 34... fxe4 {[%clk
0:04:13.9]} 35. Qg4+ {[%clk 0:03:43.1]} 35... Kf8 {[%clk 0:04:08.5]} 36. fxe4
{[%clk 0:03:32.4]} 36... Rxd5 {[%clk 0:03:40]} 37. Rxd5 {[%clk 0:03:28.2]} 37...
Re8 {[%clk 0:03:38.2]} 38. Rg5 {[%clk 0:02:44.4]} 38... Ke7 {[%clk 0:03:11.1]}
39. Rf5 {[%clk 0:02:34.4]} 39... Qh6 {[%clk 0:03:02.5]} 40. Kh2 {[%clk
0:02:24.5]} 40... Rh8 {[%clk 0:02:52]} 41. e5 {[%clk 0:02:20.1]} 41... Qe6
{[%clk 0:02:20.2]} 42. exd6+ {[%clk 0:01:59.8]} 42... Qxd6+ {[%clk 0:02:20.9]}
43. Kh1 {[%clk 0:02:00.7]} 43... Rh6 {[%clk 0:02:06.1]} 44. Qg5+ {[%clk
0:01:54.7]} 44... Rf6 {[%clk 0:01:35.8]} 45. Re5+ {[%clk 0:01:35.8]} 45... Kf8
{[%clk 0:01:32.1]} 46. Re1 {[%clk 0:01:25.9]} 46... Qf4 {[%clk 0:01:27.8]} 47.
Qh5 {[%clk 0:00:56.3]} 47... Kg7 {[%clk 0:01:23.2]} 48. a3 {[%clk 0:00:49.6]}
48... Qg3 {[%clk 0:01:17.1]} 49. Qe2 {[%clk 0:00:35.3]} 49... Re6 {[%clk
0:00:55.1]} 50. Qb2+ {[%clk 0:00:35.3]} 50... Kg8 {[%clk 0:00:47.4]} 51. Rc1
{[%clk 0:00:23.8]} 51... Re1+ {[%clk 0:00:45.5]} 52. Rxe1 {[%clk 0:00:23.9]}
52... Qxe1+ {[%clk 0:00:47.4]} 53. Kh2 {[%clk 0:00:25.4]} 53... Qg3+ {[%clk
0:00:48.3]} 54. Kh1 {[%clk 0:00:26.5]} 54... Qe1+ {[%clk 0:00:48.2]} 55. Kh2
{[%clk 0:00:27.7]} 55... Qg3+ {[%clk 0:00:49.7]} 56. Kh1 {[%clk 0:00:29.1]}
56... Qf4 {[%clk 0:00:41.4]} 57. Qc3 {[%clk 0:00:23.4]} 57... Kh7 {[%clk
0:00:36.6]} 58. Qd3+ {[%clk 0:00:20.5]} 58... Kh6 {[%clk 0:00:35.9]} 59. Qd8
{[%clk 0:00:17]} 59... Kg7 {[%clk 0:00:29]} 60. Kg1 {[%clk 0:00:09.1]} 60...
Qe3+ {[%clk 0:00:29.6]} 61. Kh2 {[%clk 0:00:09.8]} 61... Qg3+ {[%clk 0:00:30.1]}
62. Kh1 {[%clk 0:00:10.5]} 62... Qe1+ {[%clk 0:00:30.5]} 63. Kh2 {[%clk
0:00:11.5]} 63... Qe5+ {[%clk 0:00:31.9]} 64. Kh1 {[%clk 0:00:12.2]} 64... f6
{[%clk 0:00:31.7]} 65. Qd7+ {[%clk 0:00:12]} 65... Kh6 {[%clk 0:00:32]} 66. Qd8
{[%clk 0:00:11.8]} 66... Qe1+ {[%clk 0:00:29.3]} 67. Kh2 {[%clk 0:00:12.8]}
67... Qe5+ {[%clk 0:00:30.6]} 68. Kh1 {[%clk 0:00:13.8]} 68... Kg7 {[%clk
0:00:22.9]} 69. Qd7+ {[%clk 0:00:14]} 69... Kg6 {[%clk 0:00:21.7]} 70. Qd3+
{[%clk 0:00:14.5]} 70... Kg5 {[%clk 0:00:18.1]} 71. Qd2+ {[%clk 0:00:12.6]}
71... Kg6 {[%clk 0:00:18.8]} 72. Qd3+ {[%clk 0:00:13]} 72... f5 {[%clk
0:00:19.1]} 73. Qf3 {[%clk 0:00:06.3]} 73... Qe1+ {[%clk 0:00:17.5]} 74. Kh2
{[%clk 0:00:07.2]} 74... Qe5+ {[%clk 0:00:18.9]} 75. Kh1 {[%clk 0:00:08.5]}
75... Qd6 {[%clk 0:00:19.4]} 76. Qa8 {[%clk 0:00:07.3]} 76... Qd1+ {[%clk
0:00:18.1]} 77. Kh2 {[%clk 0:00:08.5]} 77... Qd6+ {[%clk 0:00:19.5]} 78. Kh1
{[%clk 0:00:09.9]} 78... Qd1+ {[%clk 0:00:16.2]} 79. Kh2 {[%clk 0:00:11.1]}
79... Qd6+ {[%clk 0:00:17.3]} 80. Kh1 {[%clk 0:00:12.4]} 1/2-1/2

[Event "GrandPrix_30.05"]
[Site "Chess.com"]
[Date "2020.05.30"]
[Round "3"]
[White "BakaPG"]
[Black "kpio91"]
[Result "0-1"]
[WhiteElo "2316"]
[BlackElo "2568"]
[TimeControl "600+2"]
[EndTime "9:26:46 PDT"]
[Termination "kpio91 won by resignation"]

1. e4 {[%clk 0:09:57.1]} 1... c5 {[%clk 0:10:00]} 2. Nf3 {[%clk 0:09:56.2]} 2...
d6 {[%clk 0:10:00.9]} 3. c3 {[%clk 0:09:55.7]} 3... Nf6 {[%clk 0:09:56.2]} 4.
Bd3 {[%clk 0:09:53.1]} 4... Nc6 {[%clk 0:09:44.5]} 5. Bc2 {[%clk 0:09:49.3]}
5... g6 {[%clk 0:09:41.6]} 6. h3 {[%clk 0:09:48.8]} 6... Bg7 {[%clk 0:09:42.2]}
7. O-O {[%clk 0:09:49.6]} 7... O-O {[%clk 0:09:39.6]} 8. d4 {[%clk 0:09:50.5]}
8... cxd4 {[%clk 0:09:33.2]} 9. cxd4 {[%clk 0:09:51.5]} 9... Nb4 {[%clk
0:09:34]} 10. Bb3 {[%clk 0:09:51.6]} 10... d5 {[%clk 0:09:22.5]} 11. e5 {[%clk
0:09:50.5]} 11... Ne8 {[%clk 0:09:23.4]} 12. a3 {[%clk 0:09:48.5]} 12... Nc6
{[%clk 0:09:24.3]} 13. Nc3 {[%clk 0:09:48.5]} 13... Nc7 {[%clk 0:09:24.3]} 14.
Be3 {[%clk 0:09:44.7]} 14... f6 {[%clk 0:09:15.3]} 15. exf6 {[%clk 0:09:38.9]}
15... exf6 {[%clk 0:09:15.6]} 16. Qd2 {[%clk 0:09:18.7]} 16... Be6 {[%clk
0:09:13.7]} 17. Rfe1 {[%clk 0:09:10.7]} 17... Bf7 {[%clk 0:09:13.3]} 18. Ba2
{[%clk 0:09:05.1]} 18... Qd7 {[%clk 0:09:04.9]} 19. Bh6 {[%clk 0:08:58.3]} 19...
Rad8 {[%clk 0:09:05.3]} 20. Bxg7 {[%clk 0:08:54.4]} 20... Kxg7 {[%clk
0:09:06.4]} 21. Re3 {[%clk 0:08:55.4]} 21... g5 {[%clk 0:09:00.7]} 22. Rae1
{[%clk 0:08:53]} 22... Bg6 {[%clk 0:08:55.8]} 23. Ne2 {[%clk 0:08:39.2]} 23...
Rf7 {[%clk 0:08:49.3]} 24. Bb1 {[%clk 0:08:07.7]} 24... Bxb1 {[%clk 0:08:16.9]}
25. Rxb1 {[%clk 0:08:06.6]} 25... Ne6 {[%clk 0:08:16.8]} 26. Re1 {[%clk
0:07:57.5]} 26... Kh8 {[%clk 0:08:10.4]} 27. b4 {[%clk 0:07:43.1]} 27... Ne7
{[%clk 0:07:57.8]} 28. Qd3 {[%clk 0:07:00.7]} 28... Rc8 {[%clk 0:07:38.8]} 29.
g3 {[%clk 0:06:23.2]} 29... Ng7 {[%clk 0:07:34.4]} 30. g4 {[%clk 0:06:18.4]}
30... Ng6 {[%clk 0:07:02.4]} 31. Nh2 {[%clk 0:05:33.3]} 31... Ne6 {[%clk
0:06:37.5]} 32. Qf5 {[%clk 0:05:24.5]} 32... Nef4 {[%clk 0:06:03.9]} 33. Nxf4
{[%clk 0:04:37.5]} 33... Nxf4 {[%clk 0:06:04.1]} 34. Qxd7 {[%clk 0:04:31]} 34...
Rxd7 {[%clk 0:06:03.9]} 35. Nf1 {[%clk 0:04:19.3]} 35... Kg8 {[%clk 0:05:41.9]}
36. Kh2 {[%clk 0:04:12.1]} 36... Rc2 {[%clk 0:05:22.7]} 37. Kg3 {[%clk
0:04:09.5]} 37... Rdc7 {[%clk 0:05:00.9]} 38. Re8+ {[%clk 0:04:03.6]} 38... Kf7
{[%clk 0:05:00.5]} 39. Rh8 {[%clk 0:03:56.8]} 39... R7c3+ {[%clk 0:04:14.8]} 40.
Ne3 {[%clk 0:03:40.5]} 40... Kg7 {[%clk 0:03:13.7]} 41. Rd8 {[%clk 0:03:37.6]}
41... Rxa3 {[%clk 0:03:13.5]} 42. Rd7+ {[%clk 0:03:25.8]} 42... Kg6 {[%clk
0:03:05.2]} 43. Rxb7 {[%clk 0:03:24.7]} 43... Rd2 {[%clk 0:02:23.5]} 44. Rh1
{[%clk 0:01:59.9]} 44... Rxd4 {[%clk 0:01:39.3]} 45. h4 {[%clk 0:01:55.8]} 45...
gxh4+ {[%clk 0:01:12.2]} 46. Rxh4 {[%clk 0:01:53.2]} 46... h5 {[%clk 0:01:12.5]}
47. Kf3 {[%clk 0:01:46.2]} 47... Kg5 {[%clk 0:00:58.2]} 48. Rh1 {[%clk
0:01:41.1]} 48... hxg4+ {[%clk 0:00:55]} 49. Kg3 {[%clk 0:01:42]} 49... Nh5+
{[%clk 0:00:41.8]} 50. Kg2 {[%clk 0:01:38.2]} 50... Nf4+ {[%clk 0:00:29.6]} 51.
Kg3 {[%clk 0:01:35.3]} 51... Nh5+ {[%clk 0:00:21.4]} 52. Kg2 {[%clk 0:01:36.1]}
52... f5 {[%clk 0:00:21.9]} 53. Rh7 {[%clk 0:01:07.7]} 53... Nf4+ {[%clk
0:00:19]} 54. Kg3 {[%clk 0:01:06.8]} 54... Re4 {[%clk 0:00:07.8]} 55. Rf7 {[%clk
0:00:33.1]} 55... Raxe3+ {[%clk 0:00:05.2]} 56. fxe3 {[%clk 0:00:32.5]} 56...
Rxe3+ {[%clk 0:00:06.8]} 57. Kf2 {[%clk 0:00:33.6]} 57... Rf3+ {[%clk
0:00:06.5]} 58. Ke1 {[%clk 0:00:34.6]} 58... Ra3 {[%clk 0:00:04.7]} 59. Rhh7
{[%clk 0:00:29.2]} 59... d4 {[%clk 0:00:04.6]} 60. Rxa7 {[%clk 0:00:27.9]} 60...
Rxa7 {[%clk 0:00:04.7]} 61. Rxa7 {[%clk 0:00:28]} 61... Nd3+ {[%clk 0:00:06.6]}
62. Kd2 {[%clk 0:00:26.9]} 62... Nxb4 {[%clk 0:00:08.5]} 63. Rd7 {[%clk
0:00:15]} 63... Nc6 {[%clk 0:00:08.5]} 64. Ke2 {[%clk 0:00:14.5]} 64... Kf4
{[%clk 0:00:08.1]} 65. Rd6 {[%clk 0:00:13.6]} 65... Ne5 {[%clk 0:00:09.1]} 66.
Rxd4+ {[%clk 0:00:14.3]} 66... Kg5 {[%clk 0:00:07.6]} 67. Ke3 {[%clk 0:00:14.3]}
67... Ng6 {[%clk 0:00:06.1]} 68. Rd5 {[%clk 0:00:12.7]} 68... Nh4 {[%clk
0:00:05.8]} 69. Ra5 {[%clk 0:00:13]} 69... g3 {[%clk 0:00:06.8]} 70. Ra8 {[%clk
0:00:12.5]} 70... Kg4 {[%clk 0:00:03.6]} 71. Rg8+ {[%clk 0:00:10.7]} 71... Kh3
{[%clk 0:00:04.6]} 72. Kf4 {[%clk 0:00:07]} 72... g2 {[%clk 0:00:05.7]} 73. Rg7
{[%clk 0:00:07.5]} 73... Kh2 {[%clk 0:00:05.3]} 74. Rg8 {[%clk 0:00:07.6]} 74...
g1=Q {[%clk 0:00:05]} 75. Rxg1 {[%clk 0:00:06.9]} 75... Kxg1 {[%clk 0:00:06.6]}
76. Kg5 {[%clk 0:00:07.9]} 76... Kg2 {[%clk 0:00:07.8]} 77. Kxh4 {[%clk
0:00:08.8]} 77... f4 {[%clk 0:00:08.3]} 0-1

[Event "GrandPrix_30.05"]
[Site "Chess.com"]
[Date "2020.05.30"]
[Round "3"]
[White "Gannikus21"]
[Black "rasmussvane"]
[Result "0-1"]
[WhiteElo "2148"]
[BlackElo "2488"]
[TimeControl "600+2"]
[EndTime "9:26:57 PDT"]
[Termination "rasmussvane won on time"]

1. Nf3 {[%clk 0:09:58.6]} 1... d5 {[%clk 0:10:00.5]} 2. g3 {[%clk 0:09:58.6]}
2... Nf6 {[%clk 0:09:58.2]} 3. Bg2 {[%clk 0:09:59.6]} 3... e6 {[%clk 0:09:59.7]}
4. O-O {[%clk 0:10:00.1]} 4... Be7 {[%clk 0:10:01.3]} 5. c4 {[%clk 0:10:00.7]}
5... O-O {[%clk 0:10:02.5]} 6. Qc2 {[%clk 0:09:57]} 6... d4 {[%clk 0:10:02.5]}
7. d3 {[%clk 0:09:57.1]} 7... Nc6 {[%clk 0:08:59.7]} 8. a3 {[%clk 0:09:56.2]}
8... a5 {[%clk 0:08:59.8]} 9. e3 {[%clk 0:08:39.6]} 9... e5 {[%clk 0:08:54.2]}
10. exd4 {[%clk 0:08:39]} 10... exd4 {[%clk 0:08:16]} 11. Re1 {[%clk 0:08:20.2]}
11... h6 {[%clk 0:07:51.5]} 12. Bf4 {[%clk 0:08:09.1]} 12... Bd6 {[%clk
0:07:22.3]} 13. Bxd6 {[%clk 0:08:08.1]} 13... Qxd6 {[%clk 0:07:24.2]} 14. Nbd2
{[%clk 0:08:09.7]} 14... Bf5 {[%clk 0:07:07]} 15. Nh4 {[%clk 0:08:09]} 15... Bh7
{[%clk 0:07:03.8]} 16. Ne4 {[%clk 0:08:09.5]} 16... Nxe4 {[%clk 0:06:58.2]} 17.
Bxe4 {[%clk 0:08:09.4]} 17... Bxe4 {[%clk 0:06:59.6]} 18. Rxe4 {[%clk
0:08:11.1]} 18... f5 {[%clk 0:05:05.6]} 19. Re2 {[%clk 0:07:56.6]} 19... g5
{[%clk 0:05:00.8]} 20. Nf3 {[%clk 0:06:31.5]} 20... Rae8 {[%clk 0:04:59.8]} 21.
Rae1 {[%clk 0:06:30.1]} 21... Rxe2 {[%clk 0:04:27.7]} 22. Qxe2 {[%clk
0:06:20.7]} 22... Kg7 {[%clk 0:04:06.4]} 23. h4 {[%clk 0:04:10.9]} 23... g4
{[%clk 0:04:02.1]} 24. Nd2 {[%clk 0:03:56.5]} 24... Rf7 {[%clk 0:03:49.2]} 25.
Qe8 {[%clk 0:03:38.9]} 25... Rf8 {[%clk 0:03:08.6]} 26. Qe2 {[%clk 0:03:37.6]}
26... Rf7 {[%clk 0:03:07]} 27. Qe8 {[%clk 0:03:37.3]} 27... Rf8 {[%clk
0:02:05.7]} 28. Qe6 {[%clk 0:03:32.2]} 28... Qxe6 {[%clk 0:01:58.3]} 29. Rxe6
{[%clk 0:03:33.2]} 29... Rf6 {[%clk 0:01:59.7]} 30. Re8 {[%clk 0:03:18.1]} 30...
Rf8 {[%clk 0:01:57.5]} 31. Rxf8 {[%clk 0:03:18.7]} 31... Kxf8 {[%clk 0:01:57.8]}
32. Kf1 {[%clk 0:03:20.2]} 32... Ke7 {[%clk 0:01:57.9]} 33. Ke2 {[%clk
0:03:21.2]} 33... h5 {[%clk 0:01:41.3]} 34. Nb3 {[%clk 0:03:06.8]} 34... b6
{[%clk 0:01:37.7]} 35. Kd2 {[%clk 0:03:07.3]} 35... a4 {[%clk 0:01:36.2]} 36.
Nc1 {[%clk 0:03:08.2]} 36... f4 {[%clk 0:01:16.2]} 37. Ne2 {[%clk 0:02:38.5]}
37... f3 {[%clk 0:00:57.1]} 38. Nf4 {[%clk 0:02:39.1]} 38... Nd8 {[%clk
0:00:54.1]} 39. Nxh5 {[%clk 0:02:02.3]} 39... Ne6 {[%clk 0:00:39.5]} 40. Nf4
{[%clk 0:01:59.9]} 40... Nxf4 {[%clk 0:00:40.7]} 41. gxf4 {[%clk 0:02:01.1]}
41... Kf6 {[%clk 0:00:39.1]} 42. h5 {[%clk 0:02:01.1]} 42... c5 {[%clk
0:00:36.7]} 43. Ke1 {[%clk 0:02:01.2]} 43... Kf5 {[%clk 0:00:23.1]} 44. Kd1
{[%clk 0:01:36.5]} 44... Kf6 {[%clk 0:00:21.8]} 45. Kd2 {[%clk 0:01:35.7]} 45...
Kf5 {[%clk 0:00:22.8]} 46. Ke1 {[%clk 0:01:24.3]} 46... Kf6 {[%clk 0:00:21]} 47.
Kd2 {[%clk 0:00:16.6]} 47... Kf5 {[%clk 0:00:21.5]} 48. Kd1 {[%clk 0:00:15.7]}
48... Kxf4 {[%clk 0:00:09.2]} 49. h6 {[%clk 0:00:16.2]} 49... g3 {[%clk
0:00:10.4]} 50. fxg3+ {[%clk 0:00:17.4]} 50... Kxg3 {[%clk 0:00:11.9]} 51. h7
{[%clk 0:00:17.8]} 51... f2 {[%clk 0:00:13.3]} 52. Ke2 {[%clk 0:00:05]} 52...
Kg2 {[%clk 0:00:14]} 53. h8=Q {[%clk 0:00:06.2]} 53... f1=Q+ {[%clk 0:00:15.2]}
54. Kd2 {[%clk 0:00:07.7]} 54... Qf2+ {[%clk 0:00:16.1]} 55. Kd1 {[%clk
0:00:05]} 55... Qf3+ {[%clk 0:00:17.1]} 56. Ke1 {[%clk 0:00:02.7]} 56... Qe3+
{[%clk 0:00:18]} 57. Kd1 {[%clk 0:00:03.9]} 57... Qxd3+ {[%clk 0:00:19.4]} 58.
Kc1 {[%clk 0:00:05.4]} 58... Qxc4+ {[%clk 0:00:16.1]} 59. Kd2 {[%clk 0:00:06.3]}
59... Qe6 {[%clk 0:00:12.9]} 60. Qg7+ {[%clk 0:00:06.8]} 60... Kf3 {[%clk
0:00:13.8]} 61. Qf8+ {[%clk 0:00:04.9]} 61... Ke4 {[%clk 0:00:14.7]} 62. Qa8+
{[%clk 0:00:05.6]} 62... Kf4 {[%clk 0:00:14]} 63. Qf8+ {[%clk 0:00:05.7]} 63...
Ke5 {[%clk 0:00:13.6]} 64. Qh8+ {[%clk 0:00:05.6]} 64... Qf6 {[%clk 0:00:10.6]}
65. Qb8+ {[%clk 0:00:05.9]} 65... Kd5 {[%clk 0:00:07.8]} 66. Qa8+ {[%clk
0:00:05.8]} 66... Qc6 {[%clk 0:00:08.9]} 67. Qg8+ {[%clk 0:00:06.4]} 67... Kd6
{[%clk 0:00:10.2]} 68. Qf8+ {[%clk 0:00:05.7]} 68... Kc7 {[%clk 0:00:11.4]} 69.
Qe7+ {[%clk 0:00:05.2]} 69... Qd7 {[%clk 0:00:12.3]} 70. Qe5+ {[%clk 0:00:06.2]}
70... Kb7 {[%clk 0:00:13.4]} 71. Qe4+ {[%clk 0:00:06.8]} 71... Ka7 {[%clk
0:00:14.6]} 72. Qg6 {[%clk 0:00:04.5]} 72... Qb5 {[%clk 0:00:14.3]} 73. Qf7+
{[%clk 0:00:05.2]} 73... Ka6 {[%clk 0:00:15.4]} 74. Kc1 {[%clk 0:00:03.8]} 74...
Qb3 {[%clk 0:00:13.8]} 75. Qc7 {[%clk 0:00:04]} 75... Qc4+ {[%clk 0:00:14]} 76.
Kd2 {[%clk 0:00:05.3]} 76... Qe6 {[%clk 0:00:11.3]} 77. Qb8 {[%clk 0:00:05.1]}
77... Kb5 {[%clk 0:00:11.9]} 78. Qc7 {[%clk 0:00:03.9]} 78... Kc4 {[%clk
0:00:12.1]} 0-1